[Event "*** SCC Grand Prix: Titled Tuesday Blitz"]
[Site "Chess.com"]
[Date "2020.06.02"]
[Round "4"]
[White "yobdc"]
[Black "Chess_Boxer123"]
[Result "0-1"]
[WhiteElo "2167"]
[BlackElo "2701"]
[TimeControl "180+1"]
[EndTime "10:38:01 PDT"]
[Termination "Chess_Boxer123 won by resignation"]

1. e4 {[%clk 0:03:00.9]} 1... c5 {[%clk 0:03:00]} 2. c3 {[%clk 0:02:59.4]} 2...
Nf6 {[%clk 0:02:57.7]} 3. e5 {[%clk 0:02:59.8]} 3... Nd5 {[%clk 0:02:58]} 4. d4
{[%clk 0:03:00.2]} 4... cxd4 {[%clk 0:02:58.9]} 5. Nf3 {[%clk 0:03:00.6]} 5...
Nc6 {[%clk 0:02:59.3]} 6. Bc4 {[%clk 0:03:00.9]} 6... Nb6 {[%clk 0:02:59.6]} 7.
Bb3 {[%clk 0:03:01.2]} 7... d5 {[%clk 0:02:59.9]} 8. exd6 {[%clk 0:02:59.6]}
8... Qxd6 {[%clk 0:02:59.9]} 9. O-O {[%clk 0:02:51.3]} 9... Be6 {[%clk
0:02:58.8]} 10. Bxe6 {[%clk 0:02:37.9]} 10... Qxe6 {[%clk 0:02:56.7]} 11. Nxd4
{[%clk 0:02:38.2]} 11... Qd7 {[%clk 0:02:51.2]} 12. Nb5 {[%clk 0:01:55.1]} 12...
Rd8 {[%clk 0:02:45.8]} 13. Qxd7+ {[%clk 0:01:49.8]} 13... Rxd7 {[%clk
0:02:45.7]} 14. Be3 {[%clk 0:01:48.2]} 14... Nc4 {[%clk 0:02:41.6]} 15. Bxa7
{[%clk 0:01:32.1]} 15... Nxa7 {[%clk 0:02:31.7]} 16. Nxa7 {[%clk 0:01:31.7]}
16... Nxb2 {[%clk 0:02:31.9]} 17. Na3 {[%clk 0:01:29.7]} 17... e6 {[%clk
0:02:31.7]} 18. N3b5 {[%clk 0:01:13.3]} 18... Bc5 {[%clk 0:02:30.6]} 19. Rab1
{[%clk 0:00:56.6]} 19... Nc4 {[%clk 0:02:27.8]} 20. Rfd1 {[%clk 0:00:54.7]}
20... Rxd1+ {[%clk 0:02:18.8]} 21. Rxd1 {[%clk 0:00:54.6]} 21... Ke7 {[%clk
0:02:19.7]} 22. Re1 {[%clk 0:00:31.8]} 22... Ra8 {[%clk 0:02:03.3]} 23. Re4
{[%clk 0:00:31.5]} 23... Na5 {[%clk 0:01:58.1]} 24. Ra4 {[%clk 0:00:28.3]} 24...
Bxa7 {[%clk 0:01:48.7]} 25. Kf1 {[%clk 0:00:10.1]} 25... Bc5 {[%clk 0:01:44.3]}
26. Nc7 {[%clk 0:00:09]} 26... Rc8 {[%clk 0:01:39.4]} 0-1

[Event "*** SCC Grand Prix: Titled Tuesday Blitz"]
[Site "Chess.com"]
[Date "2020.06.02"]
[Round "4"]
[White "aleksa74"]
[Black "DvaHrasta"]
[Result "1-0"]
[WhiteElo "2672"]
[BlackElo "2477"]
[TimeControl "180+1"]
[EndTime "10:38:03 PDT"]
[Termination "aleksa74 won on time"]

1. e4 {[%clk 0:03:00.9]} 1... c6 {[%clk 0:02:59.8]} 2. Nc3 {[%clk 0:02:58.7]}
2... d5 {[%clk 0:02:59.3]} 3. Nf3 {[%clk 0:02:59.4]} 3... Nf6 {[%clk 0:02:59.2]}
4. e5 {[%clk 0:02:58.9]} 4... Ne4 {[%clk 0:02:59]} 5. d4 {[%clk 0:02:59.6]} 5...
Bg4 {[%clk 0:02:55.5]} 6. h3 {[%clk 0:02:54.9]} 6... Nxc3 {[%clk 0:02:53.6]} 7.
bxc3 {[%clk 0:02:54.1]} 7... Bxf3 {[%clk 0:02:53.5]} 8. Qxf3 {[%clk 0:02:53.7]}
8... e6 {[%clk 0:02:53.7]} 9. Rb1 {[%clk 0:02:50.9]} 9... b5 {[%clk 0:02:52.7]}
10. Bd3 {[%clk 0:02:44.6]} 10... Be7 {[%clk 0:02:37.6]} 11. O-O {[%clk
0:02:44.5]} 11... O-O {[%clk 0:02:35.8]} 12. Qg4 {[%clk 0:02:44.7]} 12... Nd7
{[%clk 0:01:54.7]} 13. Bh6 {[%clk 0:02:38.2]} 13... g6 {[%clk 0:01:54.6]} 14. f4
{[%clk 0:02:38.5]} 14... Qa5 {[%clk 0:01:45.7]} 15. f5 {[%clk 0:02:33.6]} 15...
exf5 {[%clk 0:01:20.4]} 16. Bxf5 {[%clk 0:02:32.1]} 16... Nb6 {[%clk 0:01:16.2]}
17. e6 {[%clk 0:02:32]} 17... Kh8 {[%clk 0:00:18]} 18. exf7 {[%clk 0:02:21.5]}
18... Rxf7 {[%clk 0:00:12.6]} 19. Bxg6 {[%clk 0:02:06.8]} 19... Rxf1+ {[%clk
0:00:09.5]} 20. Rxf1 {[%clk 0:02:07.7]} 20... hxg6 {[%clk 0:00:08.1]} 21. Qxg6
{[%clk 0:01:59.9]} 21... Rg8 {[%clk 0:00:05.4]} 22. Qh5 {[%clk 0:02:00.1]} 22...
Rg3 {[%clk 0:00:02.9]} 23. Bg5+ {[%clk 0:01:44]} 23... Kg8 {[%clk 0:00:02.1]}
24. Qg6+ {[%clk 0:01:25.1]} 1-0

[Event "*** SCC Grand Prix: Titled Tuesday Blitz"]
[Site "Chess.com"]
[Date "2020.06.02"]
[Round "4"]
[White "CroissantNeuf"]
[Black "SirMittensofMittensville"]
[Result "1-0"]
[WhiteElo "2390"]
[BlackElo "2590"]
[TimeControl "180+1"]
[EndTime "10:38:07 PDT"]
[Termination "CroissantNeuf won by resignation"]

1. e4 {[%clk 0:03:00.9]} 1... e5 {[%clk 0:02:59.8]} 2. Nf3 {[%clk 0:03:00.8]}
2... Nc6 {[%clk 0:02:59.5]} 3. d4 {[%clk 0:03:01]} 3... exd4 {[%clk 0:02:59.3]}
4. Nxd4 {[%clk 0:03:01.6]} 4... Bb4+ {[%clk 0:02:59.1]} 5. c3 {[%clk 0:02:47]}
5... Bc5 {[%clk 0:02:58.5]} 6. Be3 {[%clk 0:02:36.6]} 6... Bb6 {[%clk
0:02:57.9]} 7. Nf5 {[%clk 0:02:32.5]} 7... Bxe3 {[%clk 0:02:56.7]} 8. Nxe3
{[%clk 0:02:32.2]} 8... Nge7 {[%clk 0:02:57]} 9. Bd3 {[%clk 0:02:27.4]} 9... O-O
{[%clk 0:02:56.6]} 10. O-O {[%clk 0:02:26.9]} 10... d6 {[%clk 0:02:57.1]} 11. f4
{[%clk 0:02:22.2]} 11... Kh8 {[%clk 0:02:43.2]} 12. Nd2 {[%clk 0:02:19.1]} 12...
f5 {[%clk 0:02:42.8]} 13. exf5 {[%clk 0:02:12.4]} 13... Nxf5 {[%clk 0:02:43.7]}
14. Nxf5 {[%clk 0:02:13]} 14... Bxf5 {[%clk 0:02:44]} 15. Bxf5 {[%clk
0:02:13.5]} 15... Rxf5 {[%clk 0:02:44.9]} 16. Qg4 {[%clk 0:02:12.5]} 16... Qd7
{[%clk 0:02:38.4]} 17. Rae1 {[%clk 0:02:09.3]} 17... Raf8 {[%clk 0:02:23.6]} 18.
Nf3 {[%clk 0:01:57.2]} 18... Qf7 {[%clk 0:01:54.6]} 19. Ng5 {[%clk 0:01:48.3]}
19... Qxa2 {[%clk 0:01:48.6]} 20. Ne6 {[%clk 0:01:30]} 20... R8f7 {[%clk
0:01:39.5]} 21. Nxg7 {[%clk 0:01:20.2]} 21... R5f6 {[%clk 0:01:22]} 22. Re8+
{[%clk 0:01:03.6]} 22... Rf8 {[%clk 0:01:21.8]} 23. Nh5 {[%clk 0:00:55.9]} 23...
Qf7 {[%clk 0:00:56.4]} 24. Rxf8+ {[%clk 0:00:44.4]} 24... Qxf8 {[%clk
0:00:57.3]} 25. Nxf6 {[%clk 0:00:44.5]} 25... Qxf6 {[%clk 0:00:58]} 26. Re1
{[%clk 0:00:42.5]} 26... Qf8 {[%clk 0:00:51.1]} 27. Qd7 {[%clk 0:00:35.8]} 1-0

[Event "*** SCC Grand Prix: Titled Tuesday Blitz"]
[Site "Chess.com"]
[Date "2020.06.02"]
[Round "4"]
[White "VladimirBugayev"]
[Black "SaqoChess_Twitch"]
[Result "0-1"]
[WhiteElo "2144"]
[BlackElo "2398"]
[TimeControl "180+1"]
[EndTime "10:38:11 PDT"]
[Termination "SaqoChess_Twitch won on time"]

1. e4 {[%clk 0:03:00.9]} 1... c5 {[%clk 0:02:58.7]} 2. a3 {[%clk 0:03:00.6]}
2... d6 {[%clk 0:02:58.2]} 3. Nc3 {[%clk 0:02:58.2]} 3... Nf6 {[%clk 0:02:54.3]}
4. Bc4 {[%clk 0:02:57.7]} 4... e6 {[%clk 0:02:54.1]} 5. d3 {[%clk 0:02:57.6]}
5... Be7 {[%clk 0:02:54.1]} 6. Nge2 {[%clk 0:02:47.6]} 6... O-O {[%clk
0:02:50.2]} 7. O-O {[%clk 0:02:47.4]} 7... Nc6 {[%clk 0:02:50.7]} 8. h3 {[%clk
0:02:35.6]} 8... d5 {[%clk 0:02:50.7]} 9. exd5 {[%clk 0:02:34.5]} 9... exd5
{[%clk 0:02:51.6]} 10. Bb5 {[%clk 0:02:34.5]} 10... Qc7 {[%clk 0:02:48.5]} 11.
Bf4 {[%clk 0:02:33.8]} 11... Bd6 {[%clk 0:02:48.4]} 12. Bxd6 {[%clk 0:02:31.3]}
12... Qxd6 {[%clk 0:02:49.3]} 13. d4 {[%clk 0:02:27.8]} 13... c4 {[%clk
0:02:38]} 14. Bxc6 {[%clk 0:02:23.2]} 14... bxc6 {[%clk 0:02:37.1]} 15. b4
{[%clk 0:02:23.3]} 15... a5 {[%clk 0:02:33.9]} 16. Rb1 {[%clk 0:01:38.4]} 16...
axb4 {[%clk 0:02:32.3]} 17. axb4 {[%clk 0:01:38.1]} 17... Rb8 {[%clk 0:02:28.9]}
18. b5 {[%clk 0:01:37.5]} 18... cxb5 {[%clk 0:02:27.2]} 19. Nxb5 {[%clk
0:01:28.7]} 19... Qd7 {[%clk 0:02:27]} 20. Nbc3 {[%clk 0:01:13.6]} 20... Rxb1
{[%clk 0:02:25.8]} 21. Qxb1 {[%clk 0:01:13.6]} 21... Re8 {[%clk 0:02:26.4]} 22.
Qb6 {[%clk 0:01:10.2]} 22... h6 {[%clk 0:02:25.4]} 23. Ra1 {[%clk 0:01:09.7]}
23... Qf5 {[%clk 0:02:24.5]} 24. Qb5 {[%clk 0:00:43.8]} 24... Qxc2 {[%clk
0:02:19.7]} 25. Rc1 {[%clk 0:00:42]} 25... Qb3 {[%clk 0:02:17.1]} 26. Qc6 {[%clk
0:00:37.3]} 26... Bd7 {[%clk 0:02:15.7]} 27. Qd6 {[%clk 0:00:34.8]} 27... Qb2
{[%clk 0:02:15.4]} 28. Re1 {[%clk 0:00:25.3]} 28... Qb8 {[%clk 0:02:12.6]} 29.
Qc5 {[%clk 0:00:21.3]} 29... Rc8 {[%clk 0:02:11.1]} 30. Qa5 {[%clk 0:00:16.9]}
30... Qc7 {[%clk 0:02:11]} 31. Qa3 {[%clk 0:00:15.8]} 31... Be6 {[%clk
0:02:07.2]} 32. Kf1 {[%clk 0:00:10.7]} 32... Ne4 {[%clk 0:02:07.1]} 33. Nxe4
{[%clk 0:00:09]} 33... dxe4 {[%clk 0:02:08]} 34. Nc3 {[%clk 0:00:09.4]} 34... f5
{[%clk 0:02:06.9]} 35. d5 {[%clk 0:00:09.5]} 35... Bf7 {[%clk 0:02:06.5]} 36. d6
{[%clk 0:00:09.1]} 36... Qd7 {[%clk 0:02:04.2]} 37. Rb1 {[%clk 0:00:08.7]} 37...
Rc6 {[%clk 0:02:03.9]} 38. Rb8+ {[%clk 0:00:07.2]} 38... Kh7 {[%clk 0:02:04.5]}
39. Qa8 {[%clk 0:00:04.8]} 39... Qxd6 {[%clk 0:02:03.8]} 40. Rh8+ {[%clk
0:00:04.2]} 40... Kg6 {[%clk 0:02:04.3]} 41. Ne2 {[%clk 0:00:03.4]} 41... Qd3
{[%clk 0:02:04.7]} 42. Ke1 {[%clk 0:00:02]} 42... Qb1+ {[%clk 0:02:04.8]} 43.
Kd2 {[%clk 0:00:01.3]} 43... c3+ {[%clk 0:02:05.7]} 0-1

[Event "*** SCC Grand Prix: Titled Tuesday Blitz"]
[Site "Chess.com"]
[Date "2020.06.02"]
[Round "4"]
[White "aa175"]
[Black "francyIM"]
[Result "0-1"]
[WhiteElo "2468"]
[BlackElo "2662"]
[TimeControl "180+1"]
[EndTime "10:38:12 PDT"]
[Termination "francyIM won on time"]

1. d4 {[%clk 0:03:00.9]} 1... Nf6 {[%clk 0:02:59.3]} 2. Nf3 {[%clk 0:02:58.1]}
2... e6 {[%clk 0:02:58]} 3. Bf4 {[%clk 0:02:57.5]} 3... b6 {[%clk 0:02:56.7]} 4.
e3 {[%clk 0:02:57.6]} 4... Bb7 {[%clk 0:02:57.1]} 5. Nbd2 {[%clk 0:02:58.1]}
5... Be7 {[%clk 0:02:56.7]} 6. Bd3 {[%clk 0:02:57.8]} 6... O-O {[%clk 0:02:57]}
7. h4 {[%clk 0:02:55.3]} 7... c5 {[%clk 0:02:55.3]} 8. c3 {[%clk 0:02:53.6]}
8... d6 {[%clk 0:02:54.8]} 9. e4 {[%clk 0:02:53.1]} 9... cxd4 {[%clk 0:02:54.3]}
10. cxd4 {[%clk 0:02:53.1]} 10... e5 {[%clk 0:02:52.8]} 11. dxe5 {[%clk
0:02:49.6]} 11... dxe5 {[%clk 0:02:53.7]} 12. Nxe5 {[%clk 0:02:49.2]} 12... Bd6
{[%clk 0:02:49.6]} 13. Qe2 {[%clk 0:02:41.1]} 13... Re8 {[%clk 0:02:38.6]} 14.
Ndc4 {[%clk 0:02:40.1]} 14... Bb4+ {[%clk 0:02:38.5]} 15. Kf1 {[%clk 0:02:25.6]}
15... Na6 {[%clk 0:02:31.3]} 16. a3 {[%clk 0:02:13.7]} 16... Bf8 {[%clk
0:02:29.2]} 17. b4 {[%clk 0:01:54.7]} 17... Nc7 {[%clk 0:02:26.3]} 18. Rd1
{[%clk 0:01:49.3]} 18... Ne6 {[%clk 0:02:25.2]} 19. Bg5 {[%clk 0:01:32.4]} 19...
h6 {[%clk 0:02:23.3]} 20. Nxf7 {[%clk 0:01:19.3]} 20... Kxf7 {[%clk 0:02:16.7]}
21. e5 {[%clk 0:01:18]} 21... hxg5 {[%clk 0:02:08.6]} 22. exf6 {[%clk
0:01:17.1]} 22... Bxg2+ {[%clk 0:01:58.7]} 23. Kg1 {[%clk 0:01:13.9]} 23... Nf4
{[%clk 0:01:52.8]} 24. Ne5+ {[%clk 0:01:07.5]} 24... Rxe5 {[%clk 0:01:51.6]} 25.
Qxe5 {[%clk 0:01:06.2]} 25... Nxd3 {[%clk 0:01:49.7]} 26. fxg7 {[%clk
0:00:36.1]} 26... Nxe5 {[%clk 0:01:48.4]} 27. Rxd8 {[%clk 0:00:34.3]} 27... Rxd8
{[%clk 0:01:44.4]} 28. gxf8=R+ {[%clk 0:00:14.9]} 28... Rxf8 {[%clk 0:01:41.8]}
29. Kxg2 {[%clk 0:00:13.8]} 29... Rh8 {[%clk 0:01:40.3]} 30. Re1 {[%clk
0:00:03.5]} 30... Nd3 {[%clk 0:01:38.1]} 31. Re3 {[%clk 0:00:02.1]} 31... Nf4+
{[%clk 0:01:37.6]} 32. Kg3 {[%clk 0:00:02]} 32... Rxh4 {[%clk 0:01:37.3]} 33.
Kf3 {[%clk 0:00:01]} 33... Ne6 {[%clk 0:01:36.9]} 34. Rb3 {[%clk 0:00:01.1]}
34... Nd4+ {[%clk 0:01:36.5]} 0-1

[Event "*** SCC Grand Prix: Titled Tuesday Blitz"]
[Site "Chess.com"]
[Date "2020.06.02"]
[Round "4"]
[White "CalinGheorghiu"]
[Black "MomchilPetkov"]
[Result "1-0"]
[WhiteElo "2322"]
[BlackElo "2515"]
[TimeControl "180+1"]
[EndTime "10:38:12 PDT"]
[Termination "CalinGheorghiu won by resignation"]

1. d4 {[%clk 0:03:00.9]} 1... Nf6 {[%clk 0:02:59.9]} 2. c4 {[%clk 0:03:00.6]}
2... e6 {[%clk 0:03:00.2]} 3. Nc3 {[%clk 0:03:00.8]} 3... Bb4 {[%clk 0:03:00.1]}
4. f3 {[%clk 0:03:01.3]} 4... c5 {[%clk 0:02:58.5]} 5. d5 {[%clk 0:03:01.1]}
5... O-O {[%clk 0:02:58.6]} 6. e4 {[%clk 0:03:00.1]} 6... d6 {[%clk 0:02:59]} 7.
Ne2 {[%clk 0:02:57.7]} 7... b5 {[%clk 0:02:59.2]} 8. Nf4 {[%clk 0:02:50.4]} 8...
exd5 {[%clk 0:02:58.1]} 9. Nxd5 {[%clk 0:02:46.8]} 9... Nxd5 {[%clk 0:02:12.6]}
10. Qxd5 {[%clk 0:02:43.8]} 10... Be6 {[%clk 0:02:03.2]} 11. Qxa8 {[%clk
0:02:41.4]} 11... Bxc3+ {[%clk 0:01:56.8]} 12. bxc3 {[%clk 0:02:40.4]} 12... Qb6
{[%clk 0:01:57.2]} 13. cxb5 {[%clk 0:02:32.3]} 13... d5 {[%clk 0:01:30.6]} 14.
a4 {[%clk 0:02:02]} 14... Qa5 {[%clk 0:01:21.3]} 15. Bd2 {[%clk 0:01:56.7]}
15... Re8 {[%clk 0:01:18]} 16. Be2 {[%clk 0:01:48.2]} 16... Qc7 {[%clk
0:00:54.8]} 17. O-O {[%clk 0:01:08]} 17... Bc8 {[%clk 0:00:49.2]} 18. Qxd5
{[%clk 0:00:56.3]} 18... Rd8 {[%clk 0:00:49.5]} 19. Bf4 {[%clk 0:00:56]} 19...
Qe7 {[%clk 0:00:47.2]} 20. Qe5 {[%clk 0:00:47.4]} 20... Qf8 {[%clk 0:00:38.7]}
21. Qxb8 {[%clk 0:00:45.5]} 21... Be6 {[%clk 0:00:38.8]} 22. Qe5 {[%clk
0:00:42.8]} 22... c4 {[%clk 0:00:38.6]} 23. Rad1 {[%clk 0:00:41]} 23... Re8
{[%clk 0:00:39.5]} 24. Qd6 {[%clk 0:00:40.7]} 1-0

[Event "*** SCC Grand Prix: Titled Tuesday Blitz"]
[Site "Chess.com"]
[Date "2020.06.02"]
[Round "4"]
[White "saikrishnaReturns"]
[Black "Msb2"]
[Result "0-1"]
[WhiteElo "2639"]
[BlackElo "2828"]
[TimeControl "180+1"]
[EndTime "10:38:13 PDT"]
[Termination "Msb2 won by checkmate"]

1. e4 {[%clk 0:03:00.9]} 1... e6 {[%clk 0:02:58.8]} 2. d3 {[%clk 0:02:59.8]}
2... d5 {[%clk 0:02:59.3]} 3. Nd2 {[%clk 0:03:00.4]} 3... Nf6 {[%clk 0:02:59.8]}
4. Ngf3 {[%clk 0:03:00.7]} 4... b6 {[%clk 0:03:00.2]} 5. e5 {[%clk 0:02:48]}
5... Nfd7 {[%clk 0:03:00.2]} 6. d4 {[%clk 0:02:41.6]} 6... c5 {[%clk 0:03:00.4]}
7. c3 {[%clk 0:02:41.9]} 7... Be7 {[%clk 0:03:00.9]} 8. h4 {[%clk 0:02:29.5]}
8... f6 {[%clk 0:02:48.1]} 9. Bb5 {[%clk 0:02:13]} 9... O-O {[%clk 0:02:41.7]}
10. exf6 {[%clk 0:02:03.3]} 10... Nxf6 {[%clk 0:02:42.6]} 11. Qe2 {[%clk
0:02:03.4]} 11... a6 {[%clk 0:02:39.6]} 12. Bd3 {[%clk 0:02:02.5]} 12... Nc6
{[%clk 0:02:40.2]} 13. Nf1 {[%clk 0:01:58.5]} 13... b5 {[%clk 0:02:38]} 14. Ng3
{[%clk 0:01:51.5]} 14... b4 {[%clk 0:02:37]} 15. h5 {[%clk 0:01:43.3]} 15...
bxc3 {[%clk 0:02:18]} 16. bxc3 {[%clk 0:01:44.2]} 16... cxd4 {[%clk 0:02:18.3]}
17. cxd4 {[%clk 0:01:44.4]} 17... Bb4+ {[%clk 0:02:18.6]} 18. Bd2 {[%clk
0:01:31.8]} 18... Qa5 {[%clk 0:02:18.4]} 19. Rh4 {[%clk 0:01:19.8]} 19... Bd7
{[%clk 0:02:13]} 20. Kf1 {[%clk 0:01:14.9]} 20... Bxd2 {[%clk 0:02:06.6]} 21.
Nxd2 {[%clk 0:01:15.8]} 21... Qc3 {[%clk 0:01:57.5]} 22. Nb3 {[%clk 0:01:13.3]}
22... Nb4 {[%clk 0:01:56.8]} 23. Rd1 {[%clk 0:01:03.4]} 23... Nxd3 {[%clk
0:01:56.8]} 24. Rxd3 {[%clk 0:01:01.9]} 24... Qc8 {[%clk 0:01:57.5]} 25. Nc5
{[%clk 0:00:54.9]} 25... Bb5 {[%clk 0:01:57.2]} 26. h6 {[%clk 0:00:49]} 26... g6
{[%clk 0:01:55.9]} 27. Kg1 {[%clk 0:00:48.8]} 27... Bxd3 {[%clk 0:01:55.1]} 28.
Qxd3 {[%clk 0:00:48.2]} 28... e5 {[%clk 0:01:53.3]} 29. Ne2 {[%clk 0:00:37.1]}
29... e4 {[%clk 0:01:53]} 30. Qg3 {[%clk 0:00:34.8]} 30... Rb8 {[%clk
0:01:41.6]} 31. Nf4 {[%clk 0:00:29.9]} 31... Rb1+ {[%clk 0:01:39.2]} 32. Kh2
{[%clk 0:00:29.5]} 32... Qf5 {[%clk 0:01:23]} 33. Nce6 {[%clk 0:00:28.1]} 33...
Rc8 {[%clk 0:01:18.2]} 34. Ng7 {[%clk 0:00:28.1]} 34... Rcc1 {[%clk 0:01:18]}
35. Nxf5 {[%clk 0:00:20.7]} 35... Rh1# {[%clk 0:01:17.9]} 0-1

[Event "*** SCC Grand Prix: Titled Tuesday Blitz"]
[Site "Chess.com"]
[Date "2020.06.02"]
[Round "4"]
[White "albi1999"]
[Black "UCantHandleDenker"]
[Result "1/2-1/2"]
[WhiteElo "2654"]
[BlackElo "2476"]
[TimeControl "180+1"]
[EndTime "10:38:13 PDT"]
[Termination "Game drawn by repetition"]

1. d4 {[%clk 0:03:00.9]} 1... Nf6 {[%clk 0:02:57.4]} 2. c4 {[%clk 0:03:00.5]}
2... d6 {[%clk 0:02:56.9]} 3. Nf3 {[%clk 0:02:58.1]} 3... Nbd7 {[%clk
0:02:56.8]} 4. Nc3 {[%clk 0:02:56.7]} 4... e5 {[%clk 0:02:56.3]} 5. g3 {[%clk
0:02:53.4]} 5... Be7 {[%clk 0:02:55.7]} 6. Bg2 {[%clk 0:02:53.5]} 6... O-O
{[%clk 0:02:55.8]} 7. O-O {[%clk 0:02:53.9]} 7... c6 {[%clk 0:02:56.1]} 8. e4
{[%clk 0:02:54.4]} 8... a6 {[%clk 0:02:55]} 9. a4 {[%clk 0:02:52.8]} 9... a5
{[%clk 0:02:54.5]} 10. Qc2 {[%clk 0:02:49.5]} 10... Re8 {[%clk 0:02:53.9]} 11.
h3 {[%clk 0:02:49.3]} 11... Bf8 {[%clk 0:02:51.8]} 12. Be3 {[%clk 0:02:48.8]}
12... exd4 {[%clk 0:02:51.1]} 13. Nxd4 {[%clk 0:02:48.3]} 13... g6 {[%clk
0:02:49.5]} 14. Rad1 {[%clk 0:02:45.1]} 14... Qc7 {[%clk 0:02:48.8]} 15. Rd2
{[%clk 0:02:37.7]} 15... Nc5 {[%clk 0:02:48.1]} 16. Rfd1 {[%clk 0:02:35.5]}
16... Nfd7 {[%clk 0:02:34.6]} 17. b3 {[%clk 0:02:32.3]} 17... Na6 {[%clk
0:02:31.7]} 18. Nde2 {[%clk 0:02:16.7]} 18... Ndc5 {[%clk 0:02:27.1]} 19. Bf4
{[%clk 0:02:12.2]} 19... Qb6 {[%clk 0:02:22.8]} 20. Rb1 {[%clk 0:02:08.2]} 20...
Qc7 {[%clk 0:02:10.3]} 21. Qd1 {[%clk 0:02:04.2]} 21... Be6 {[%clk 0:01:59]} 22.
Bxd6 {[%clk 0:01:58.4]} 22... Bxd6 {[%clk 0:01:57.7]} 23. Rxd6 {[%clk
0:01:59.3]} 23... Rad8 {[%clk 0:01:51.4]} 24. Rxd8 {[%clk 0:01:55.2]} 24... Rxd8
{[%clk 0:01:50.9]} 25. Qc1 {[%clk 0:01:55.6]} 25... Qb6 {[%clk 0:01:38.3]} 26.
Qb2 {[%clk 0:01:41.1]} 26... Nd3 {[%clk 0:01:36.2]} 27. Qa3 {[%clk 0:01:28.8]}
27... Qxf2+ {[%clk 0:01:35.2]} 28. Kh2 {[%clk 0:01:28.6]} 28... Ne1 {[%clk
0:01:32.6]} 29. Rxe1 {[%clk 0:01:26.1]} 29... Qxe1 {[%clk 0:01:31.8]} 30. Qe7
{[%clk 0:01:26.5]} 30... Rd2 {[%clk 0:01:26.7]} 31. Qxb7 {[%clk 0:01:21.4]}
31... Nb4 {[%clk 0:01:19.5]} 32. Qb8+ {[%clk 0:01:19]} 32... Kg7 {[%clk
0:01:18.9]} 33. Qe5+ {[%clk 0:01:19.5]} 33... Kg8 {[%clk 0:01:08.1]} 34. Qb8+
{[%clk 0:01:16.9]} 34... Kg7 {[%clk 0:01:07.2]} 35. Qe5+ {[%clk 0:01:13.3]}
35... Kf8 {[%clk 0:01:05.3]} 36. Qb8+ {[%clk 0:00:59.8]} 36... Ke7 {[%clk
0:00:59.8]} 37. Qc7+ {[%clk 0:00:58.5]} 37... Kf8 {[%clk 0:00:54.7]} 38. Qb8+
{[%clk 0:00:57.7]} 38... Kg7 {[%clk 0:00:54.1]} 1/2-1/2

[Event "*** SCC Grand Prix: Titled Tuesday Blitz"]
[Site "Chess.com"]
[Date "2020.06.02"]
[Round "4"]
[White "Koalaskakistis"]
[Black "nadirsm"]
[Result "1-0"]
[WhiteElo "2398"]
[BlackElo "2156"]
[TimeControl "180+1"]
[EndTime "10:38:13 PDT"]
[Termination "Koalaskakistis won by resignation"]

1. Nf3 {[%clk 0:03:00.9]} 1... d5 {[%clk 0:02:59.2]} 2. g3 {[%clk 0:03:01.3]}
2... c6 {[%clk 0:02:59.5]} 3. Bg2 {[%clk 0:03:01.1]} 3... e6 {[%clk 0:02:59.9]}
4. O-O {[%clk 0:03:01.6]} 4... f5 {[%clk 0:03:00.5]} 5. d3 {[%clk 0:03:02.5]}
5... Nf6 {[%clk 0:03:00.8]} 6. Nbd2 {[%clk 0:03:02.2]} 6... Bc5 {[%clk
0:02:58.1]} 7. b3 {[%clk 0:02:52.6]} 7... O-O {[%clk 0:02:56.1]} 8. a4 {[%clk
0:02:50]} 8... Qe7 {[%clk 0:02:53.3]} 9. Bb2 {[%clk 0:02:42.3]} 9... Nbd7 {[%clk
0:02:53]} 10. Qe1 {[%clk 0:02:38]} 10... e5 {[%clk 0:02:28.4]} 11. e4 {[%clk
0:02:35.9]} 11... dxe4 {[%clk 0:01:53.6]} 12. dxe4 {[%clk 0:02:33.5]} 12... f4
{[%clk 0:01:53.6]} 13. gxf4 {[%clk 0:02:31.7]} 13... exf4 {[%clk 0:01:53.5]} 14.
e5 {[%clk 0:02:31.8]} 14... Nd5 {[%clk 0:01:44.4]} 15. Ne4 {[%clk 0:02:29.9]}
15... Bb4 {[%clk 0:01:38.6]} 16. c3 {[%clk 0:02:28.6]} 16... Ba5 {[%clk
0:01:38.1]} 17. Ba3 {[%clk 0:02:27.1]} 17... c5 {[%clk 0:01:28.4]} 18. Rd1
{[%clk 0:02:22.9]} 18... N5b6 {[%clk 0:00:52.6]} 19. b4 {[%clk 0:02:21.9]} 19...
Nc4 {[%clk 0:00:47.9]} 20. bxa5 {[%clk 0:02:12.5]} 20... Nxa3 {[%clk 0:00:47.6]}
21. Qd2 {[%clk 0:02:04.7]} 21... Nxe5 {[%clk 0:00:45.2]} 22. Qa2+ {[%clk
0:01:58.2]} 22... c4 {[%clk 0:00:39.6]} 23. Nxe5 {[%clk 0:01:35.5]} 23... Qxe5
{[%clk 0:00:39.4]} 24. f3 {[%clk 0:01:35.9]} 24... Qe7 {[%clk 0:00:31.5]} 25.
Ra1 {[%clk 0:01:26.8]} 25... Bf5 {[%clk 0:00:20.5]} 26. Qxa3 {[%clk 0:01:25.4]}
26... Qc7 {[%clk 0:00:15.2]} 27. Qc5 {[%clk 0:01:21.2]} 27... Qxa5 {[%clk
0:00:11.9]} 28. Qxa5 {[%clk 0:01:19.8]} 1-0

[Event "*** SCC Grand Prix: Titled Tuesday Blitz"]
[Site "Chess.com"]
[Date "2020.06.02"]
[Round "4"]
[White "c63_amg"]
[Black "jonaszmb"]
[Result "0-1"]
[WhiteElo "2689"]
[BlackElo "2427"]
[TimeControl "180+1"]
[EndTime "10:38:14 PDT"]
[Termination "jonaszmb won on time"]

1. e4 {[%clk 0:03:00.9]} 1... c5 {[%clk 0:03:00.2]} 2. Nf3 {[%clk 0:03:00]} 2...
Nc6 {[%clk 0:03:00.4]} 3. Bb5 {[%clk 0:02:59.5]} 3... a6 {[%clk 0:03:00.4]} 4.
Bxc6 {[%clk 0:02:58.2]} 4... dxc6 {[%clk 0:03:01.3]} 5. d3 {[%clk 0:02:55.6]}
5... Qc7 {[%clk 0:03:01.6]} 6. h3 {[%clk 0:02:54.9]} 6... e5 {[%clk 0:03:01.7]}
7. Nc3 {[%clk 0:02:54.5]} 7... Ne7 {[%clk 0:03:01.1]} 8. O-O {[%clk 0:02:55.1]}
8... Ng6 {[%clk 0:03:01.1]} 9. Ne2 {[%clk 0:02:50.1]} 9... Be7 {[%clk
0:02:59.8]} 10. Nh2 {[%clk 0:02:49.1]} 10... O-O {[%clk 0:02:57.9]} 11. f4
{[%clk 0:02:45.9]} 11... exf4 {[%clk 0:02:51.3]} 12. Nxf4 {[%clk 0:02:40.5]}
12... Bd6 {[%clk 0:02:51.2]} 13. Qf3 {[%clk 0:02:40.7]} 13... f5 {[%clk
0:02:40.3]} 14. g3 {[%clk 0:01:23.7]} 14... fxe4 {[%clk 0:02:27.2]} 15. Qxe4
{[%clk 0:00:59.6]} 15... Nxf4 {[%clk 0:02:25]} 16. Bxf4 {[%clk 0:00:55.9]} 16...
Bxh3 {[%clk 0:02:22.3]} 17. Qc4+ {[%clk 0:00:42.3]} 17... Kh8 {[%clk 0:02:20.7]}
18. Rf2 {[%clk 0:00:42.9]} 18... b5 {[%clk 0:02:11.7]} 19. Qe4 {[%clk
0:00:38.7]} 19... Bxf4 {[%clk 0:02:01.8]} 20. gxf4 {[%clk 0:00:32.5]} 20... Rae8
{[%clk 0:01:59.9]} 21. Qf3 {[%clk 0:00:31.9]} 21... Bf5 {[%clk 0:01:57.9]} 22.
Rg2 {[%clk 0:00:27.9]} 22... Be6 {[%clk 0:01:41.6]} 23. Qh5 {[%clk 0:00:14.4]}
23... Qxf4 {[%clk 0:01:36.5]} 24. Qxc5 {[%clk 0:00:14.6]} 24... Bd5 {[%clk
0:01:34.3]} 25. Rf1 {[%clk 0:00:12.6]} 25... Qb8 {[%clk 0:01:21.3]} 26. Rxf8+
{[%clk 0:00:03.2]} 26... Rxf8 {[%clk 0:01:22.2]} 27. Rg5 {[%clk 0:00:02]} 27...
Qf4 {[%clk 0:01:18.8]} 0-1